{"text_format":"1","workbook":"xlsx","n_sheets":1,"sheets":["Sheet1"],"not_rendered":{"charts":0,"images":0,"macros":1,"external_links":0,"defined_names":0,"comments":0,"pivot_tables":0},"unopened":[],"bounds":{"document_bytes":16777216,"sheet_cells":100000,"rows_first":2000,"rows_last":500,"rows_between":2000,"halvings":0,"cell_chars":16384,"cell_head_chars":4096},"cells_cut":0,"cells_raw":0,"read":"whole","date_system":"1900"}

{"sheet":"Sheet1","index":0,"n_rows":17,"n_cols":26,"rows_kept":17,"cut":false,"hidden":false,"merged":[[16,2,16,11],[16,16,16,25],[0,15,2,25]]}
[null,"الدرجة",89,null,null,null,null,null,null,null,null,null,null,null,null,"المطلوب عند الضغط على زر التوزيع يتم توزيع الدرجة على الخانات بحيث لتصبح النتيجة المطلوبة كما هو مبين بهذا النموذج"]
[]
[]
[null,"التقييم",10,9,8,7,6,5,4,3,2,1,null,null,null,"التقييم",10,9,8,7,6,5,4,3,2,1]
[null,"عنصر1","P","P",null,null,null,"P",null,null,null,null,null,null,null,"عنصر1"]
[null,"عنصر2","P","P",null,null,null,null,null,"P",null,null,null,null,null,"عنصر2"]
[null,"عنصر3",null,null,null,null,null,null,null,null,null,null,null,null,null,"عنصر3"]
[null,"عنصر4","P",null,null,null,null,null,null,null,null,null,null,null,null,"عنصر4"]
[null,"عنصر5",null,null,null,null,null,null,null,null,null,null,null,null,null,"عنصر5"]
[null,"عنصر6",null,"P","P",null,null,null,null,null,null,null,null,null,null,"عنصر6"]
[null,"عنصر7",null,null,"P",null,null,null,null,null,null,null,null,null,null,"عنصر7"]
[null,"عنصر8",null,null,null,null,null,null,null,null,null,null,null,null,null,"عنصر8"]
[null,"عنصر9",null,null,"P",null,null,null,null,null,null,null,null,null,null,"عنصر9"]
[null,"عنصر10",null,null,null,null,null,null,null,null,null,null,null,null,null,"عنصر10"]
[null,null,{"$f":"COUNTA(C5:C14)*C4","v":30},{"$f":"COUNTA(D5:D14)*D4","v":27},24,0,0,5,0,3,0,0,null,null,null,null,{"$f":"COUNTA(Q5:Q14)*Q4","v":0},{"$f":"COUNTA(R5:R14)*R4","v":0},{"$f":"COUNTA(S5:S14)*S4","v":0},{"$f":"COUNTA(T5:T14)*T4","v":0},{"$f":"COUNTA(U5:U14)*U4","v":0},{"$f":"COUNTA(V5:V14)*V4","v":0},{"$f":"COUNTA(W5:W14)*W4","v":0},{"$f":"COUNTA(X5:X14)*X4","v":0},{"$f":"COUNTA(Y5:Y14)*Y4","v":0},{"$f":"COUNTA(Z5:Z14)*Z4","v":0}]
[]
[null,"المجموع",{"$f":"SUM(C15:L15)","v":89},null,null,null,null,null,null,null,null,null,null,null,null,"المجموع",{"$f":"SUM(Q15:Z15)","v":0}]